Workbook

Sheet Sheet1
B1: CtRL+g - sætter tid | O1: forventet sidste ankomer
C2: starttid | D2: forventet første ankomst | O2: =C3+MAX(C11:C26) -> 45228.47917
B3: 6km løb | C3: 45228.4375 | D3: =C3+MIN(C11:C26) -> 45228.4625 | E3: bedst | F3: =MIN(G11,G32,O11,O33,G21,G43,O43,O21) -> 00:00:01 | O3: =C4+MAX(C32:C46) -> 45228.46992
B4: 10km løb | C4: 45228.42708 | D4: =C4+MIN(C32:C46) -> 45228.46367 | E4: bedste mand | F4: =MIN(G11,G32,O33,O11) -> 00:00:01 | O4: =C5+MAX(K11:K29) -> 45228.475
B5: 6km gang | C5: 45228.41667 | D5: =C5+MIN(K11:K29) -> 45228.45972 | E5: bedste kvinde | F5: =MIN(G21,G43,O43,O21) -> 00:00:09 | O5: =C6+MAX(K33:K46) -> 45228.47998
B6: 10km gang | C6: 45228.39582 | D6: =C6+MIN(K33:K46) -> 45228.47846
B9: kategori | C9: 6 km løb | J9: kategori | K9: 6 km gang
A10: nr. | B10: mænd | C10: Forventet | D10: ankomsttid | E10: real tid | F10: difference | G10: bedste M i kategori | I10: nr. | J10: mænd | K10: Forventet | L10: ankomsttid | M10: real tid | N10: difference | O10: bedste M i kategori
A11: 170 | B11: Michael Madsen | C11: 00:38:00 | D11: 45228.46608 | E11: =D11-C3 -> 00:41:09 | F11: =IF(E11>C11,E11-C11,C11-E11) -> 00:03:09 | G11: =MIN(F11:F19) -> 00:00:12 | I11: 177 | J11: Henning | K11: 01:20:00 | L11: 45228.46905 | M11: =L11-C5 -> 01:15:26 | N11: =IF(M11>K11,M11-K11,K11-M11) -> 00:04:34 | O11: =MIN(N11:N16) -> 00:03:17
A12: 180 | B12: Benny Christiansen | C12: 00:44:10 | D12: 45228.46772 | E12: =D12-C3 -> 00:43:31 | F12: =IF(E12>C12,E12-C12,C12-E12) -> 00:00:39 | M12: =L12-C5 -> -45228.41667 | N12: =IF(M12>K12,M12-K12,K12-M12) -> 45228.41667
A13: 181 | B13: Peter Hvorbjerg | C13: 00:45:01 | D13: 45228.46792 | E13: =D13-C3 -> 00:43:48 | F13: 00:01:13 | M13: =L13-C5 -> -45228.41667 | N13: =IF(M13>K13,M13-K13,K13-M13) -> 45228.41667
A14: 165 | B14: Anders H. | C14: 00:48:00 | D14: 45228.47352 | E14: =D14-C3 -> 00:51:52 | F14: 00:03:52 | I14: 185 | J14: Anders A. | K14: 01:12:11 | L14: 45228.46907 | M14: =L14-C5 -> 01:15:28 | N14: =IF(M14>K14,M14-K14,K14-M14) -> 00:03:17
A15: 186 | B15: Ole Jensen | C15: 00:36:00 | D15: 45228.46264 | E15: =D15-C3 -> 00:36:12 | F15: 00:00:12 | M15: =L15-C5 -> -45228.41667 | N15: 45228.41667
A16: 173 | B16: Bjarne Dæbdahl | C16: 00:43:10 | D16: 45228.47273 | E16: =D16-C3 -> 00:50:44 | F16: 00:07:34
A17: 167 | B17: Elliot | C17: 00:47:00 | D17: 45228.47344 | E17: =D17-C3 -> 00:51:45 | F17: =IF(E17>C17,E17-C17,C17-E17) -> 00:04:45
B20: kvinder | G20: bedste K i kategori | J20: kvinder | O20: bedste K i kategori
A21: 171 | B21: Berit Falk | C21: 00:46:00 | D21: 45228.46792 | E21: =D21-C3 -> 00:43:48 | F21: =IF(E21>C21,E21-C21,C21-E21) -> 00:02:12 | G21: =MIN(F21:F27) -> 00:00:09 | I21: 172 | J21: Hanne Jensen | K21: 01:22:10 | L21: 45228.46465 | M21: =L21-C5 -> 01:09:06 | N21: =IF(M21>K21,M21-K21,K21-M21) -> 00:13:04 | O21: =MIN(N21:N29) -> 00:01:49
A22: 160 | B22: Sussane | C22: 00:47:00 | D22: 45228.47024 | E22: =D22-C3 -> 00:47:09 | F22: =IF(E22>C22,E22-C22,C22-E22) -> 00:00:09 | I22: 178 | J22: Dorit Hansen | K22: 01:11:00 | L22: 45228.46471 | M22: =L22-C5 -> 01:09:11 | N22: =IF(M22>K22,M22-K22,K22-M22) -> 00:01:49
A23: 175 | B23: Ruth Hansen | C23: 01:00:00 | D23: 45228.47387 | E23: =D23-C3 -> 00:52:22 | F23: 00:07:38 | I23: 179 | J23: Jytte Andersen | K23: 01:24:00 | L23: 45228.46457 | M23: =L25-C5 -> 01:09:09 | N23: =IF(M23>K23,M23-K23,K23-M23) -> 00:14:51
A24: 162 | B24: Janne | C24: 00:51:58 | D24: 45228.47221 | E24: =D24-C3 -> 00:49:59 | F24: 00:01:59 | I24: 183 | J24: Sophie | K24: 01:02:00 | L24: 45228.45513 | M24: =L24-C5 -> 00:55:23 | N24: =IF(M24>K24,M24-K24,K24-M24) -> 00:06:37
A25: 166 | B25: Elva | C25: 00:49:00 | D25: 45228.47352 | E25: =D25-C3 -> 00:51:52 | F25: 00:02:52 | I25: 188 | J25: Nina K. | K25: 01:15:00 | L25: 45228.46469 | M25: =L25-C6 -> 01:39:10 | N25: =IF(M25>K25,M25-K25,K25-M25) -> 00:24:10
A26: 168 | B26: Stephanie | C26: 00:50:00 | D26: 45228.47344 | E26: =D26-C3 -> 00:51:45 | F26: 00:01:45 | I26: 189 | J26: Bente R. | K26: 01:15:00 | L26: 45228.46457 | M26: =L26-C5 -> 01:08:59 | N26: =IF(M26>K26,M26-K26,K26-M26) -> 00:06:01
I27: 161 | J27: Anne | K27: 01:12:00 | L27: 45228.46487 | M27: =L27-C5 -> 01:09:25 | N27: 00:02:35
B28: kategori | C28: 10 km løb | M28: =L28-C5 -> -45228.41667 | N28: 45228.41667
M29: =L29-C5 -> -45228.41667 | N29: 45228.41667
B31: mænd | C31: Forventet | D31: ankomsttid | E31: real tid | F31: difference | G31: bedste M i kategori | J31: kategori | K31: 10 km gang
E32: =D32-C4 -> -45228.42708 | F32: =IF(E32>C32,E32-C32,C32-E32) -> 45228.42708 | G32: =MIN(F32:F41) -> 00:00:01 | J32: mænd | K32: Forventet | L32: ankomsttid | M32: real tid | N32: difference | O32: bedste M i kategori
A33: 187 | B33: Per Malmøs | C33: 00:52:41 | D33: 45228.46449 | E33: =D33-C4 -> 00:53:52 | F33: 00:01:11 | M33: =L33-C6 -> -45228.39582 | N33: =IF(M33>K33,M33-K33,K33-M33) -> 45228.39582 | O33: =MIN(N33:N38) -> 45228.39582
A34: 163 | B34: Martin | C34: 01:01:41 | D34: 45228.46782 | E34: =D34-C4 -> 00:58:40 | F34: 00:03:01 | M34: =L45-C6 -> -45228.39582 | N34: =IF(M34>K34,M34-K34,K34-M34) -> 45228.39582
A35: 164 | B35: Mads F | C35: 01:00:00 | D35: 45228.46645 | E35: =D35-C4 -> 00:56:41 | F35: 00:03:19 | M35: =L46-C6 -> -45228.39582 | N35: =IF(M35>K35,M35-K35,K35-M35) -> 45228.39582
A36: 182 | B36: Kurt | C36: 01:01:27 | D36: 45228.46975 | E36: =D36-C4 -> 01:01:26 | F36: 00:00:01
E37: =D37-C4 -> -45228.42708 | F37: =IF(E37>C37,E37-C37,C37-E37) -> 45228.42708
E38: =D38-C4 -> -45228.42708
E39: =D39-C4 -> -45228.42708 | F39: =IF(E39>C39,E39-C39,C39-E39) -> 45228.42708
E40: =D40-C4 -> -45228.42708 | F40: 45228.42708
E41: =D41-C4 -> -45228.42708 | F41: 45228.42708
B42: Kvinder | G42: bedste K i kategori | J42: kvinder | O42: bedste K i kategori
E43: =D43-C4 -> -45228.42708 | F43: =IF(E43>C43,E43-C43,C43-E43) -> 45228.42708 | G43: =MIN(F43:F55) -> 00:02:34 | I43: 174 | J43: Ellen | K43: 01:59:00 | L43: 45228.47808 | M43: =L43-C6 -> 01:58:27 | N43: =IF(M43>K43,M43-K43,K43-M43) -> 00:00:33 | O43: =MIN(N43:N46) -> 00:00:33
A44: 176 | B44: Karin Ingerleby | C44: 00:54:00 | D44: 45228.46637 | E44: =D44-C4 -> 00:56:34 | F44: =IF(E44>C44,E44-C44,C44-E44) -> 00:02:34 | I44: 184 | J44: Lene | K44: 02:01:11 | L44: 45228.47808 | M44: =L44-C6 -> 01:58:27 | N44: =IF(M44>K44,M44-K44,K44-M44) -> 00:02:44
E45: =D45-C4 -> -45228.42708 | F45: 45228.42708 | M45: =L45-C6 -> -45228.39582 | N45: =IF(M45>K45,M45-K45,K45-M45) -> 45228.39582
E46: =D46-C4 -> -45228.42708 | F46: 45228.42708 | M46: =L46-C6 -> -45228.39582 | N46: =IF(M46>K46,M46-K46,K46-M46) -> 45228.39582
N47: =IF(M47>K47,M47-K47,K47-M47) -> 00:00:00
N48: 00:00:00
N49: 00:00:00
N50: 00:00:00

Sheet Sheet2
A3: https://groups.google.com/forum/#!topic/microsoft.public.excel.misc/FRXbhCrYUoM

Sheet Sheet3
